{"text_format":"1","workbook":"xlsx","n_sheets":5,"sheets":["Persona Jurídica","Hoja1","Anexo 1-Formulario PEP","Anexo 2-Funciones y Cargos PEP","Hoja2"],"not_rendered":{"charts":0,"images":1,"macros":1,"external_links":1,"defined_names":5,"comments":0,"pivot_tables":0},"unopened":[],"bounds":{"document_bytes":16777216,"sheet_cells":100000,"rows_first":2000,"rows_last":500,"rows_between":2000,"halvings":0,"cell_chars":16384,"cell_head_chars":4096},"cells_cut":0,"cells_raw":0,"read":"whole","date_system":"1900"}

{"sheet":"Persona Jurídica","index":0,"n_rows":82,"n_cols":19,"rows_kept":82,"cut":false,"hidden":false,"merged":[[81,16,81,30],[3,4,3,11],[4,4,4,11],[24,4,24,12],[14,4,14,12],[16,4,16,12],[5,6,5,7],[2,12,3,12],[6,6,6,7],[30,13,38,13],[18,4,18,12],[20,4,20,12],[22,4,22,12],[26,4,26,12],[45,3,45,8],[46,3,46,9],[80,13,81,13],[80,3,82,12],[77,8,77,11],[63,4,63,5],[64,4,64,5],[65,4,65,5],[66,4,66,5],[69,4,69,5],[70,4,70,5],[71,4,71,5],[67,4,67,5],[68,4,68,5],[22,16,26,28],[57,16,62,33],[73,16,77,31],[40,16,45,31],[39,3,40,10],[56,11,58,11],[39,11,40,11],[45,9,45,10]]}
[]
[]
[null,null,null,null,null,null,null,null,null,null,null,null,"LEG-Pol-01-R.02 / V.07\nF. aprob. 15.10.2025"]
[null,null,null,null,"FORMATO  DE CONOCIMIENTO DEL CLIENTE - PERSONA JURÍDICA"]
[null,null,null,null,"Datos solicitados en cumplimiento de la Resolución SBS N° 2660-2015"]
[]
[null,null,null,null,null,null,null,null,"(dd/mm/aaaa)"]
[]
[]
[null,null,null,"Vínculo (puede marcar más de una opción) :",null,null,null,null,null,null,null,null,null,null,null,null,false,false,false]
[]
[null,null,null,null,null,null,null,null,null,null,null,null,null,null,null,null,{"$f":"IF(Q10=TRUE,\"CONTRATANTE\",\"NO CONTRATANTE\")","v":"NO CONTRATANTE"},{"$f":"IF(R10=TRUE,\"ASEGURADO\",\"NO ASEGURADO\")","v":"NO ASEGURADO"},{"$f":"IF(S10=TRUE,\"BENEFICIARIO\",\"NO BEBEFICIARIO\")","v":"NO BEBEFICIARIO"}]
[null,null,null,null,null,null,null,null,null,null,null,null,null,null,null,null,{"$f":"CONCATENATE(Q12&\"/\"&R12&\"/\"&S12)","v":"NO CONTRATANTE/NO ASEGURADO/NO BEBEFICIARIO"}]
[]
[null,null,null,"Denominación o razón social"]
[]
[null,null,null,"Registro Único de Contribuyentes (RUC) o registro equivalente para no domiciliados"]
[]
[null,null,null,"Objeto social o actividad económica principal "]
[]
[null,null,null,"Domicilio/Dirección (oficina principal)"]
[]
[null,null,null,"Teléfono y/o celular",null,null,null,null,null,null,null,null,null,null,null,null,{"$f":"CONCATENATE(\"---->|DATOS IDENTIFICACION:|~FECHA DE REGISTRO:\"&TEXT(G7,\"DD/MM/YYYY\")&\"|~VINCULO:\"&Q13&\"|~RAZON SOCIAL:\"&E15&\"|~RUC:\"&E17&\"|~ACTIVIDAD ECONOMICA:\"&E19&\"|~DIRECCION:\"&E21&\"|~TELEFONO:\"&E23&\"|~CORREO:\"&E25&\"|~PROPOSITO:\"&E27&\"|<----\")","v":"---->|DATOS IDENTIFICACION:|~FECHA DE REGISTRO:00/01/1900|~VINCULO:NO CONTRATANTE/NO ASEGURADO/NO BEBEFICIARIO|~RAZON SOCIAL:|~RUC:|~ACTIVIDAD ECONOMICA:|~DIRECCION:|~TELEFONO:|~CORREO:|~PROPOSITO:Corretaje de seguros|<----"}]
[]
[null,null,null,"Correo electrónico"]
[]
[null,null,null,"Propósito de la relación","Corretaje de seguros"]
[]
[]
[]
[null,null,null,"Nombres y apellidos completos.","Tipo de Documento de Identidad 1","Número de Documento de Identidad","Ocupación / Profesión","Nacionalidad","Residencia","Domicilio","Teléfono y/o correo electrónico","¿Es PEP?2","¿Es familiar de PEP?"]
[null,null,1,null,null,null,null,null,null,null,null,null,null,null,null,null,{"$f":"IF(D32<>\"\",CONCATENATE(\"|~R_NRO\"&C32&\"~NOMBRE APELLIDO:\"&D32&\"|TIPO DOCUMENTO:\"&E32&\"|NRO DOCUMENTO:\"&F32&\"|OCUPACION:\"&G32&\"|NACIONALIDAD:\"&H32&\"|RESIDENCIA:\"&I32&\"|DOMICILIO:\"&J32&\"|TELEFONO:\"&K32&\"|PEP:\"&L32&\"|\"),\"\")","v":""}]
[null,null,{"$f":"C32+1","v":2},null,null,null,null,null,null,null,null,null,null,null,null,null,""]
[null,null,{"$f":"C33+1","v":3},null,null,null,null,null,null,null,null,null,null,null,null,null,""]
[null,null,4,null,null,null,null,null,null,null,null,null,null,null,null,null,""]
[null,null,5,null,null,null,null,null,null,null,null,null,null,null,null,null,""]
[null,null,6,null,null,null,null,null,null,null,null,null,null,null,null,null,""]
[null,null,7,null,null,null,null,null,null,null,null,null,null,null,null,null,""]
[null,null,8,null,null,null,null,null,null,null,null,null,null,null,null,null,""]
[null,null,null,"(1)  Tipo de Documento de Identidad: DNI, CE - Carné de extranjería, Pasaporte, RUC, Carnet de Identidad emitido por el Ministerio de Relaciones Exteriores, PTP - Carnet de Permiso Temporal de Permanencia, Cédula de identidad o documentos análogos, Carnet del refugiado, Documento expedido por la CEPR del Ministerio de Relación\n(2) Se considera PEP a toda persona natural, nacional o extranjera, que cumple o que en los últimos dos (2) años haya cumplido funciones públicas destacadas, o funciones prominentes en una organización internacional, sea en el territorio nacional o en el extranjero, y cuyas circunstancias financieras puedan ser objeto de un interés público. Asimismo, se considera como PEP al colaborador directo de la máxima autoridad de la institución. En el Anexo 2 se detallan la ista de funciones y cargos ocupados por personas expuestas políticamente (PEP) en materia de prevención del lavado de activos y del financiamiento del terrorismo.",null,null,null,null,null,null,null,"En caso indicar SI en PEP, debe completar Anexo 1 Formulario PEP por cada individuo"]
[null,null,null,null,null,null,null,null,null,null,null,null,null,null,null,null,{"$f":"CONCATENATE(\"---->|REPRESENTANTE LEGAL:|\"&Q32&Q33&Q34&Q35&Q36&Q37&Q38&Q39&\"<----\")","v":"---->|REPRESENTANTE LEGAL:|<----"}]
[]
[]
[]
[]
[null,null,null,"¿Alguno de los accionistas, socios o asociados tiene directa o indirectamente más del 25% del capital social?"]
[null,null,null,"En caso la respuesta sea afirmativa, favor detallar en el siguiente cuadro las personas que cumplan la condición:"]
[null,null,null,"Nombres y apellidos completos.","Tipo de Documento de Identidad","Número de Documento de Identidad","Ocupación / Profesión","Nacionalidad","Residencia","Domicilio","Teléfono y/o correo electrónico","¿Es una Persona Expuesta Políticamente (PEP)?","% Participación",null,null,null,false]
[null,null,1,"",null,"","",null,null,"","",null,"",null,null,null,{"$f":"IF(D49<>\"\",CONCATENATE(\"|~A_NRO\"&C49&\"|NOMBRE APELLIDO:\"&D49&\"|TIPO DOCUMENTO:\"&E49&\"|NRO DOCUMENTO:\"&F49&\"|OCUPACION:\"&G49&\"|NACIONALIDAD:\"&H49&\"|RESIDENCIA:\"&I49&\"|DOMICILIO:\"&J49&\"|TELEFONO:\"&K49&\"|PEP:\"&L49&\"|PARTICIPACION:\"&M49&\"|\"),\"\")","v":""}]
[null,null,{"$f":"C49+1","v":2},"",null,"","",null,null,"","",null,"",null,null,null,{"$f":"IF(D50<>\"\",CONCATENATE(\"|~A_NRO\"&C50&\"|NOMBRE APELLIDO:\"&D50&\"|TIPO DOCUMENTO:\"&E50&\"|NRO DOCUMENTO:\"&F50&\"|OCUPACION:\"&G50&\"|NACIONALIDAD:\"&H50&\"|RESIDENCIA:\"&I50&\"|DOMICILIO:\"&J50&\"|TELEFONO:\"&K50&\"|PEP:\"&L50&\"|PARTICIPACION:\"&M50&\"|\"),\"\")","v":""}]
[null,null,{"$f":"C50+1","v":3},"",null,"","",null,null,"","",null,"",null,null,null,""]
[null,null,4,"",null,"","",null,null,"","",null,"",null,null,null,""]
[null,null,5,"",null,"","",null,null,"","",null,"",null,null,null,""]
[null,null,6,"",null,"","",null,null,"","",null,"",null,null,null,""]
[null,null,7,"",null,"","",null,null,"","",null,"",null,null,null,""]
[null,null,8,"",null,"","",null,null,"","",null,"",null,null,null,""]
[null,null,null,null,null,null,null,null,null,null,null,"En caso indicar SI en PEP, debe completar Anexo Formulario PEP por cada individuo"]
[null,null,null,null,null,null,null,null,null,null,null,null,null,null,null,null,{"$f":"CONCATENATE(\"---->|ACCIONISTAS:|\"&Q49&Q50&Q51&Q52&Q53&Q54&Q55&Q56&\"<----\")","v":"---->|ACCIONISTAS:|<----"}]
[]
[]
[]
[]
[]
[null,null,null,"Denominación o razón social","Registro Único de Contribuyentes (RUC) o registro equivalente para no domiciliados\n (Opcional)",null,"País\n(Opcional)","% Participación\n(Opcional)"]
[null,null,null,null,null,null,null,null,null,null,null,null,null,null,null,null,{"$f":"IF(D65<>\"\",CONCATENATE(\"|~RAZON SOCIAL:\"&D65&\"|RUC:\"&E65&\"|PAIS:\"&G65&\"|PARTICIPACION:\"&H65&\"|\"),\"\")","v":""}]
[null,null,null,null,null,null,null,null,null,null,null,null,null,null,null,null,{"$f":"IF(D66<>\"\",CONCATENATE(\"|~RAZON SOCIAL:\"&D66&\"|RUC:\"&E66&\"|PAIS:\"&G66&\"|PARTICIPACION:\"&H66&\"|\"),\"\")","v":""}]
[null,null,null,null,null,null,null,null,null,null,null,null,null,null,null,null,""]
[null,null,null,null,null,null,null,null,null,null,null,null,null,null,null,null,""]
[null,null,null,null,null,null,null,null,null,null,null,null,null,null,null,null,""]
[null,null,null,null,null,null,null,null,null,null,null,null,null,null,null,null,""]
[null,null,null,null,null,null,null,null,null,null,null,null,null,null,null,null,""]
[null,null,null,null,null,null,null,null,null,null,null,null,null,null,null,null,""]
[null,null,null,null,null,null,null,null,null,null,null,null,null,null,null,null,{"$f":"IF(D73<>\"\",CONCATENATE(\"~RAZON SOCIAL:\"&D73&\"|RUC:\"&E73&\"|XXX:\"&F73&\"|PAIS:\"&G73&\"|PARTICIPACION:\"&H73&\"|\"),\"\")","v":""}]
[null,null,null,null,null,null,null,null,null,null,null,null,null,null,null,null,{"$f":"CONCATENATE(\"---->|EMPRESAS VINCULADAS:|\"&Q65&Q66&Q67&Q68&Q69&Q70&Q71&Q72&\"<----\")","v":"---->|EMPRESAS VINCULADAS:|<----"}]
[]
[]
[null,null,null,"Firma del Representante Legal"]
[]
[]
[]
[null,null,null,{"$f":"Q82","v":"DATOS REGISTRADOS:\n---->|DATOS IDENTIFICACION:|~FECHA DE REGISTRO:00/01/1900|~VINCULO:NO CONTRATANTE/NO ASEGURADO/NO BEBEFICIARIO|~RAZON SOCIAL:|~RUC:|~ACTIVIDAD ECONOMICA:|~DIRECCION:|~TELEFONO:|~CORREO:|~PROPOSITO:Corretaje de seguros|<-------->|REPRESENTANTE LEGAL:|<-------->|ACCIONISTAS:|<-------->|EMPRESAS VINCULADAS:|<----"}]
[null,null,null,null,null,null,null,null,null,null,null,null,null,null,null,null,{"$f":"CONCATENATE(\"DATOS REGISTRADOS:\"&CHAR(10)&Q23&Q41&Q58&Q74)","v":"DATOS REGISTRADOS:\n---->|DATOS IDENTIFICACION:|~FECHA DE REGISTRO:00/01/1900|~VINCULO:NO CONTRATANTE/NO ASEGURADO/NO BEBEFICIARIO|~RAZON SOCIAL:|~RUC:|~ACTIVIDAD ECONOMICA:|~DIRECCION:|~TELEFONO:|~CORREO:|~PROPOSITO:Corretaje de seguros|<-------->|REPRESENTANTE LEGAL:|<-------->|ACCIONISTAS:|<-------->|EMPRESAS VINCULADAS:|<----"}]

{"sheet":"Hoja1","index":1,"n_rows":2,"n_cols":1,"rows_kept":2,"cut":false,"hidden":true,"merged":[]}
["SÍ"]
["NO"]

{"sheet":"Anexo 1-Formulario PEP","index":2,"n_rows":40,"n_cols":7,"rows_kept":40,"cut":false,"hidden":false,"merged":[[3,1,3,8],[37,3,37,7],[28,3,28,7],[10,4,10,5],[12,4,12,5],[24,4,24,5],[22,4,22,5],[26,4,26,5],[14,4,14,5],[19,3,19,6]]}
[]
[]
[]
[null,"Ficha de datos para clientes PEP"]
[]
[]
[null,null,null,null,null,null,"dd/mm/yyyy"]
[]
[]
[]
[null,null,null,"Nombres y Apellidos"]
[]
[null,null,null,"Tipo de Documento de Identidad1"]
[]
[null,null,null,"¿Es pariente de un PEP?"]
[null,null,null," → En caso sea pariente de un PEP, detallar:"]
[null,null,null,"Nombre completo","Documento","Cargo","Año de Labores"]
[]
[]
[null,null,null,"(1)  Tipo de Documento de Identidad: DNI, CE - Carnet de extranjería, Pasaporte, RUC, Carnet de Identidad emitido por el Ministerio de Relaciones Exteriores, PTP - Carnet de Permiso Temporal de Permanencia, Cédula de identidad o documentos análogos, Carnet del refugiado, Documento expedido por la CEPR del Ministerio de Relación"]
[]
[]
[null,null,null,"Institución en la que labora"]
[]
[null,null,null,"Cargo"]
[]
[null,null,null,"Años en los que ejerció el cargo (indicar si sigue teniendo el cargo): "]
[]
[null,null,null,"Parientes hasta segundo grado de consanguinidad, segundo grado de afinidad, conyugue o conviviente: "]
[]
[null,null,null,"Nombres y Apellidos","Tipo y número de documento","Vínculo"]
[]
[]
[]
[]
[]
[]
[null,null,null,"Personas Jurídicas o entes jurídicos donde mantenga una participación igual o mayor a 25%:"]
[]
[null,null,null,"Denominación o Razón Social ","Registro Único de Contribuyentes (RUC) o registro equivalente para no domiciliados","%Participación"]

{"sheet":"Anexo 2-Funciones y Cargos PEP","index":3,"n_rows":16,"n_cols":2,"rows_kept":16,"cut":false,"hidden":false,"merged":[]}
[]
[null,"ANEXO 2 : LISTA DE FUNCIONES Y CARGOS OCUPADOS POR PERSONAS EXPUESTAS POLÍTICAMENTE (PEP) EN MATERIA DE PREVENCIÓN DEL LAVADO DE ACTIVOS Y DEL FINANCIAMIENTO DEL TERRORISMO"]
[]
[null,"Se encuentran en la categoría de personas expuestas políticamente quienes cumplan o hayan cumplido, de acuerdo con lo establecido en la presente norma, las siguientes funciones y cargos, en el territorio nacional o en el extranjero:"]
[null,"a. Presidentes, jefes de estado o cargos similares."]
[null,"b. Presidente del consejo de ministros, ministros, viceministros y secretarios generales del Poder Ejecutivo."]
[null,"c. Gobernadores regionales y alcaldes o máxima autoridad de gobiernos regionales y locales, vicegobernadores regionales, regidores y gerentes de gobiernos regionales y locales."]
[null,"d. Congresistas, miembros del parlamento o cargos similares; miembros de la oficialía mayor del Congreso o cargos similares."]
[null,"e. Presidente del Poder Judicial y presidente de la Corte Suprema de Justicia; jueces supremos, jueces superiores, jueces especializados o mixtos, gerente general, secretario general y cargo equivalente en el fuero militar.\""]
[null,"f. Fiscal de la Nación, fiscales supremos, fiscales adjuntos supremos, fiscales superiores, fiscales provinciales; el gerente general y el secretario general del Ministerio Público; así como cargos equivalentes en el fuero militar (fiscales encargados de la justicia militar)."]
[null,"g. Comandante General de la Marina de Guerra, Comandante General de la Fuerza Aérea, Comandante General del Ejército y Director General de la Policía Nacional, o cargos similares de las fuerzas armadas y de las fuerzas de seguridad pública."]
[null,"h. La máxima autoridad, directores, miembros de órganos colegiados, secretarios generales y jefes de gabinete de asesores de entidades públicas, organismos públicos reguladores y/o supervisores especializados, ejecutores y organismos constitucionalmente autónomos.\""]
[null,"i. Embajadores."]
[null,"j. Funcionarios del órgano encargado de las contrataciones y adquisiciones, en el marco de la normativa aplicable sobre contrataciones del Estado de todas las entidades públicas. Asimismo, los titulares de las áreas de tesorería, presupuesto, finanzas y logística del sector público.\""]
[null,"k. La máxima autoridad del organismo internacional en la ejecución de las políticas y decisiones del directorio; y sus directores o cargos similares. Debe entenderse por organizaciones internacionales a aquellas entidades establecidas mediante acuerdos políticos oficiales entre los distintos Estados, los cuales tienen el estatus de tratados internacionales, su existencia es reconocida por ley en sus propios Estados y que dichas organizaciones se puedan diferenciar del país en donde se encuentren radicadas."]
[null,"l. Fundadores, miembros de los órganos directivos, representantes legales, contador y tesorero de los partidos políticos o alianzas electorales, así como sus candidatos a cargos de elección popular.\""]

{"sheet":"Hoja2","index":4,"n_rows":252,"n_cols":12,"rows_kept":252,"cut":false,"hidden":true,"merged":[]}
["Código Descripción"]
["0001 ","Ama de casa",null,null,null,null,"NACIONALIDAD ISO 3166"]
["0002 ","Desempleado(a)",null,null,"Si",null,null,null,null,null,1,"DNI"]
["0003 ","Empleado",null,null,"No",null,"Peru","PE",604,null,2,"CE - Carné de extranjería"]
["0004 ","Empleador(a)",null,null,null,null,"Afghanistan","AF",4,null,3,"Pasaporte"]
["0005 ","Estudiante",null,null,null,null,"Åland Islands","AX",248,null,4,"RUC"]
["0006 ","Jubilado(a)",null,null,null,null,"Albania","AL",8,null,5,"Carnet de Identidad emitido por el Ministerio de Relaciones Exteriores"]
["0007 ","Miembro de las fuerzas armadas/miembro del clero",null,null,null,null,"Algeria","DZ",12,null,6,"PTP - Carnet de Permiso Temporal de Permanencia"]
["0008 ","Obrero(a)",null,null,null,null,"American Samoa","AS",16,null,7,"Cédula de identidad o documentos análogos"]
["0009 ","Trabajador(a) del hogar",null,null,null,null,"Andorra","AD",20,null,8,"Carnet del refugiado"]
["0010 ","Trabajador(a) independiente",null,null,null,null,"Angola","AO",24,null,9,"Documento expedido por la CEPR del Ministerio de Relacion"]
["0999 ","No declara",null,null,null,null,"Anguilla","AI",660]
[null,null,null,null,null,null,"Antarctica","AQ",10]
[null,null,null,null,null,null,"Antigua and Barbuda","AG",28]
[null,null,null,null,null,null,"Argentina","AR",32]
[null,null,null,null,null,null,"Armenia","AM",51]
[null,null,null,null,null,null,"Aruba","AW",533]
[null,null,null,null,null,null,"Australia","AU",36]
[null,null,null,null,null,null,"Austria","AT",40]
[null,null,null,null,null,null,"Azerbaijan","AZ",31]
[null,null,null,null,null,null,"Bahamas (the)","BS",44]
[null,null,null,null,null,null,"Bahrain","BH",48]
[null,null,null,null,null,null,"Bangladesh","BD",50]
[null,null,null,null,null,null,"Barbados","BB",52]
[null,null,null,null,null,null,"Belarus","BY",112]
[null,null,null,null,null,null,"Belgium","BE",56]
[null,null,null,null,null,null,"Belize","BZ",84]
[null,null,null,null,null,null,"Benin","BJ",204]
[null,null,null,null,null,null,"Bermuda","BM",60]
[null,null,null,null,null,null,"Bhutan","BT",64]
[null,null,null,null,null,null,"Bolivia (Plurinational State of)","BO",68]
[null,null,null,null,null,null,"Bonaire, Sint Eustatius and Saba","BQ",535]
[null,null,null,null,null,null,"Bosnia and Herzegovina","BA",70]
[null,null,null,null,null,null,"Botswana","BW",72]
[null,null,null,null,null,null,"Bouvet Island","BV",74]
[null,null,null,null,null,null,"Brazil","BR",76]
[null,null,null,null,null,null,"British Indian Ocean Territory (the)","IO",86]
[null,null,null,null,null,null,"Brunei Darussalam","BN",96]
[null,null,null,null,null,null,"Bulgaria","BG",100]
[null,null,null,null,null,null,"Burkina Faso","BF",854]
[null,null,null,null,null,null,"Burundi","BI",108]
[null,null,null,null,null,null,"Cabo Verde","CV",132]
[null,null,null,null,null,null,"Cambodia","KH",116]
[null,null,null,null,null,null,"Cameroon","CM",120]
[null,null,null,null,null,null,"Canada","CA",124]
[null,null,null,null,null,null,"Cayman Islands (the)","KY",136]
[null,null,null,null,null,null,"Central African Republic (the)","CF",140]
[null,null,null,null,null,null,"Chad","TD",148]
[null,null,null,null,null,null,"Chile","CL",152]
[null,null,null,null,null,null,"China","CN",156]
[null,null,null,null,null,null,"Christmas Island","CX",162]
[null,null,null,null,null,null,"Cocos (Keeling) Islands (the)","CC",166]
[null,null,null,null,null,null,"Colombia","CO",170]
[null,null,null,null,null,null,"Comoros (the)","KM",174]
[null,null,null,null,null,null,"Congo (the Democratic Republic of the)","CD",180]
[null,null,null,null,null,null,"Congo (the)","CG",178]
[null,null,null,null,null,null,"Cook Islands (the)","CK",184]
[null,null,null,null,null,null,"Costa Rica","CR",188]
[null,null,null,null,null,null,"Côte d'Ivoire","CI",384]
[null,null,null,null,null,null,"Croatia","HR",191]
[null,null,null,null,null,null,"Cuba","CU",192]
[null,null,null,null,null,null,"Curaçao","CW",531]
[null,null,null,null,null,null,"Cyprus","CY",196]
[null,null,null,null,null,null,"Czechia","CZ",203]
[null,null,null,null,null,null,"Denmark","DK",208]
[null,null,null,null,null,null,"Djibouti","DJ",262]
[null,null,null,null,null,null,"Dominica","DM",212]
[null,null,null,null,null,null,"Dominican Republic (the)","DO",214]
[null,null,null,null,null,null,"Ecuador","EC",218]
[null,null,null,null,null,null,"Egypt","EG",818]
[null,null,null,null,null,null,"El Salvador","SV",222]
[null,null,null,null,null,null,"Equatorial Guinea","GQ",226]
[null,null,null,null,null,null,"Eritrea","ER",232]
[null,null,null,null,null,null,"Estonia","EE",233]
[null,null,null,null,null,null,"Eswatini","SZ",748]
[null,null,null,null,null,null,"Ethiopia","ET",231]
[null,null,null,null,null,null,"Falkland Islands (the) [Malvinas]","FK",238]
[null,null,null,null,null,null,"Faroe Islands (the)","FO",234]
[null,null,null,null,null,null,"Fiji","FJ",242]
[null,null,null,null,null,null,"Finland","FI",246]
[null,null,null,null,null,null,"France","FR",250]
[null,null,null,null,null,null,"French Guiana","GF",254]
[null,null,null,null,null,null,"French Polynesia","PF",258]
[null,null,null,null,null,null,"French Southern Territories (the)","TF",260]
[null,null,null,null,null,null,"Gabon","GA",266]
[null,null,null,null,null,null,"Gambia (the)","GM",270]
[null,null,null,null,null,null,"Georgia","GE",268]
[null,null,null,null,null,null,"Germany","DE",276]
[null,null,null,null,null,null,"Ghana","GH",288]
[null,null,null,null,null,null,"Gibraltar","GI",292]
[null,null,null,null,null,null,"Greece","GR",300]
[null,null,null,null,null,null,"Greenland","GL",304]
[null,null,null,null,null,null,"Grenada","GD",308]
[null,null,null,null,null,null,"Guadeloupe","GP",312]
[null,null,null,null,null,null,"Guam","GU",316]
[null,null,null,null,null,null,"Guatemala","GT",320]
[null,null,null,null,null,null,"Guernsey","GG",831]
[null,null,null,null,null,null,"Guinea","GN",324]
[null,null,null,null,null,null,"Guinea-Bissau","GW",624]
[null,null,null,null,null,null,"Guyana","GY",328]
[null,null,null,null,null,null,"Haiti","HT",332]
[null,null,null,null,null,null,"Heard Island and McDonald Islands","HM",334]
[null,null,null,null,null,null,"Holy See (the)","VA",336]
[null,null,null,null,null,null,"Honduras","HN",340]
[null,null,null,null,null,null,"Hong Kong","HK",344]
[null,null,null,null,null,null,"Hungary","HU",348]
[null,null,null,null,null,null,"Iceland","IS",352]
[null,null,null,null,null,null,"India","IN",356]
[null,null,null,null,null,null,"Indonesia","ID",360]
[null,null,null,null,null,null,"Iran (Islamic Republic of)","IR",364]
[null,null,null,null,null,null,"Iraq","IQ",368]
[null,null,null,null,null,null,"Ireland","IE",372]
[null,null,null,null,null,null,"Isle of Man","IM",833]
[null,null,null,null,null,null,"Israel","IL",376]
[null,null,null,null,null,null,"Italy","IT",380]
[null,null,null,null,null,null,"Jamaica","JM",388]
[null,null,null,null,null,null,"Japan","JP",392]
[null,null,null,null,null,null,"Jersey","JE",832]
[null,null,null,null,null,null,"Jordan","JO",400]
[null,null,null,null,null,null,"Kazakhstan","KZ",398]
[null,null,null,null,null,null,"Kenya","KE",404]
[null,null,null,null,null,null,"Kiribati","KI",296]
[null,null,null,null,null,null,"Korea (the Democratic People's Republic of)","KP",408]
[null,null,null,null,null,null,"Korea (the Republic of)","KR",410]
[null,null,null,null,null,null,"Kuwait","KW",414]
[null,null,null,null,null,null,"Kyrgyzstan","KG",417]
[null,null,null,null,null,null,"Lao People's Democratic Republic (the)","LA",418]
[null,null,null,null,null,null,"Latvia","LV",428]
[null,null,null,null,null,null,"Lebanon","LB",422]
[null,null,null,null,null,null,"Lesotho","LS",426]
[null,null,null,null,null,null,"Liberia","LR",430]
[null,null,null,null,null,null,"Libya","LY",434]
[null,null,null,null,null,null,"Liechtenstein","LI",438]
[null,null,null,null,null,null,"Lithuania","LT",440]
[null,null,null,null,null,null,"Luxembourg","LU",442]
[null,null,null,null,null,null,"Macao","MO",446]
[null,null,null,null,null,null,"Madagascar","MG",450]
[null,null,null,null,null,null,"Malawi","MW",454]
[null,null,null,null,null,null,"Malaysia","MY",458]
[null,null,null,null,null,null,"Maldives","MV",462]
[null,null,null,null,null,null,"Mali","ML",466]
[null,null,null,null,null,null,"Malta","MT",470]
[null,null,null,null,null,null,"Marshall Islands (the)","MH",584]
[null,null,null,null,null,null,"Martinique","MQ",474]
[null,null,null,null,null,null,"Mauritania","MR",478]
[null,null,null,null,null,null,"Mauritius","MU",480]
[null,null,null,null,null,null,"Mayotte","YT",175]
[null,null,null,null,null,null,"Mexico","MX",484]
[null,null,null,null,null,null,"Micronesia (Federated States of)","FM",583]
[null,null,null,null,null,null,"Moldova (the Republic of)","MD",498]
[null,null,null,null,null,null,"Monaco","MC",492]
[null,null,null,null,null,null,"Mongolia","MN",496]
[null,null,null,null,null,null,"Montenegro","ME",499]
[null,null,null,null,null,null,"Montserrat","MS",500]
[null,null,null,null,null,null,"Morocco","MA",504]
[null,null,null,null,null,null,"Mozambique","MZ",508]
[null,null,null,null,null,null,"Myanmar","MM",104]
[null,null,null,null,null,null,"Namibia","NA",516]
[null,null,null,null,null,null,"Nauru","NR",520]
[null,null,null,null,null,null,"Nepal","NP",524]
[null,null,null,null,null,null,"Netherlands (the)","NL",528]
[null,null,null,null,null,null,"New Caledonia","NC",540]
[null,null,null,null,null,null,"New Zealand","NZ",554]
[null,null,null,null,null,null,"Nicaragua","NI",558]
[null,null,null,null,null,null,"Niger (the)","NE",562]
[null,null,null,null,null,null,"Nigeria","NG",566]
[null,null,null,null,null,null,"Niue","NU",570]
[null,null,null,null,null,null,"Norfolk Island","NF",574]
[null,null,null,null,null,null,"North Macedonia","MK",807]
[null,null,null,null,null,null,"Northern Mariana Islands (the)","MP",580]
[null,null,null,null,null,null,"Norway","NO",578]
[null,null,null,null,null,null,"Oman","OM",512]
[null,null,null,null,null,null,"Pakistan","PK",586]
[null,null,null,null,null,null,"Palau","PW",585]
[null,null,null,null,null,null,"Palestine, State of","PS",275]
[null,null,null,null,null,null,"Panama","PA",591]
[null,null,null,null,null,null,"Papua New Guinea","PG",598]
[null,null,null,null,null,null,"Paraguay","PY",600]
[null,null,null,null,null,null,"Philippines (the)","PH",608]
[null,null,null,null,null,null,"Pitcairn","PN",612]
[null,null,null,null,null,null,"Poland","PL",616]
[null,null,null,null,null,null,"Portugal","PT",620]
[null,null,null,null,null,null,"Puerto Rico","PR",630]
[null,null,null,null,null,null,"Qatar","QA",634]
[null,null,null,null,null,null,"Réunion","RE",638]
[null,null,null,null,null,null,"Romania","RO",642]
[null,null,null,null,null,null,"Russian Federation (the)","RU",643]
[null,null,null,null,null,null,"Rwanda","RW",646]
[null,null,null,null,null,null,"Saint Barthélemy","BL",652]
[null,null,null,null,null,null,"Saint Helena, Ascension and Tristan da Cunha","SH",654]
[null,null,null,null,null,null,"Saint Kitts and Nevis","KN",659]
[null,null,null,null,null,null,"Saint Lucia","LC",662]
[null,null,null,null,null,null,"Saint Martin (French part)","MF",663]
[null,null,null,null,null,null,"Saint Pierre and Miquelon","PM",666]
[null,null,null,null,null,null,"Saint Vincent and the Grenadines","VC",670]
[null,null,null,null,null,null,"Samoa","WS",882]
[null,null,null,null,null,null,"San Marino","SM",674]
[null,null,null,null,null,null,"Sao Tome and Principe","ST",678]
[null,null,null,null,null,null,"Saudi Arabia","SA",682]
[null,null,null,null,null,null,"Senegal","SN",686]
[null,null,null,null,null,null,"Serbia","RS",688]
[null,null,null,null,null,null,"Seychelles","SC",690]
[null,null,null,null,null,null,"Sierra Leone","SL",694]
[null,null,null,null,null,null,"Singapore","SG",702]
[null,null,null,null,null,null,"Sint Maarten (Dutch part)","SX",534]
[null,null,null,null,null,null,"Slovakia","SK",703]
[null,null,null,null,null,null,"Slovenia","SI",705]
[null,null,null,null,null,null,"Solomon Islands","SB",90]
[null,null,null,null,null,null,"Somalia","SO",706]
[null,null,null,null,null,null,"South Africa","ZA",710]
[null,null,null,null,null,null,"South Georgia and the South Sandwich Islands","GS",239]
[null,null,null,null,null,null,"South Sudan","SS",728]
[null,null,null,null,null,null,"Spain","ES",724]
[null,null,null,null,null,null,"Sri Lanka","LK",144]
[null,null,null,null,null,null,"Sudan (the)","SD",729]
[null,null,null,null,null,null,"Suriname","SR",740]
[null,null,null,null,null,null,"Svalbard and Jan Mayen","SJ",744]
[null,null,null,null,null,null,"Sweden","SE",752]
[null,null,null,null,null,null,"Switzerland","CH",756]
[null,null,null,null,null,null,"Syrian Arab Republic (the)","SY",760]
[null,null,null,null,null,null,"Taiwan (Province of China)","TW",158]
[null,null,null,null,null,null,"Tajikistan","TJ",762]
[null,null,null,null,null,null,"Tanzania, the United Republic of","TZ",834]
[null,null,null,null,null,null,"Thailand","TH",764]
[null,null,null,null,null,null,"Timor-Leste","TL",626]
[null,null,null,null,null,null,"Togo","TG",768]
[null,null,null,null,null,null,"Tokelau","TK",772]
[null,null,null,null,null,null,"Tonga","TO",776]
[null,null,null,null,null,null,"Trinidad and Tobago","TT",780]
[null,null,null,null,null,null,"Tunisia","TN",788]
[null,null,null,null,null,null,"Turkey","TR",792]
[null,null,null,null,null,null,"Turkmenistan","TM",795]
[null,null,null,null,null,null,"Turks and Caicos Islands (the)","TC",796]
[null,null,null,null,null,null,"Tuvalu","TV",798]
[null,null,null,null,null,null,"Uganda","UG",800]
[null,null,null,null,null,null,"Ukraine","UA",804]
[null,null,null,null,null,null,"United Arab Emirates (the)","AE",784]
[null,null,null,null,null,null,"United Kingdom of Great Britain and Northern Ireland (the)","GB",826]
[null,null,null,null,null,null,"United States Minor Outlying Islands (the)","UM",581]
[null,null,null,null,null,null,"United States of America (the)","US",840]
[null,null,null,null,null,null,"Uruguay","UY",858]
[null,null,null,null,null,null,"Uzbekistan","UZ",860]
[null,null,null,null,null,null,"Vanuatu","VU",548]
[null,null,null,null,null,null,"Venezuela (Bolivarian Republic of)","VE",862]
[null,null,null,null,null,null,"Viet Nam","VN",704]
[null,null,null,null,null,null,"Virgin Islands (British)","VG",92]
[null,null,null,null,null,null,"Virgin Islands (U.S.)","VI",850]
[null,null,null,null,null,null,"Wallis and Futuna","WF",876]
[null,null,null,null,null,null,"Western Sahara*","EH",732]
[null,null,null,null,null,null,"Yemen","YE",887]
[null,null,null,null,null,null,"Zambia","ZM",894]
[null,null,null,null,null,null,"Zimbabwe","ZW",716]